[Event "*** SCC Grand Prix: Titled Tuesday Blitz"]
[Site "Chess.com"]
[Date "2020.10.13"]
[Round "4"]
[White "Smirnov_Pavel"]
[Black "FairChess_on_YouTube"]
[Result "1/2-1/2"]
[WhiteElo "2839"]
[BlackElo "2997"]
[TimeControl "180+1"]
[EndTime "10:39:01 PDT"]
[Termination "Game drawn by repetition"]

1. d4 {[%clk 0:03:00.9]} 1... Nf6 {[%clk 0:02:52.9]} 2. c4 {[%clk 0:03:00.2]}
2... e6 {[%clk 0:02:53.2]} 3. Nf3 {[%clk 0:03:00.4]} 3... a6 {[%clk 0:02:52.4]}
4. Nc3 {[%clk 0:02:56.8]} 4... d5 {[%clk 0:02:52.6]} 5. e3 {[%clk 0:02:56.7]}
5... b6 {[%clk 0:02:44.4]} 6. Bd3 {[%clk 0:02:41.8]} 6... Bb7 {[%clk 0:02:43.5]}
7. O-O {[%clk 0:02:41.4]} 7... Nbd7 {[%clk 0:02:43.3]} 8. cxd5 {[%clk
0:02:24.9]} 8... exd5 {[%clk 0:02:42.3]} 9. Qc2 {[%clk 0:02:24.4]} 9... Be7
{[%clk 0:02:28]} 10. e4 {[%clk 0:02:12.3]} 10... dxe4 {[%clk 0:02:26.5]} 11.
Nxe4 {[%clk 0:02:13.2]} 11... O-O {[%clk 0:02:23]} 12. Ne5 {[%clk 0:01:46]}
12... Nxe4 {[%clk 0:02:05.8]} 13. Bxe4 {[%clk 0:01:44.3]} 13... Bxe4 {[%clk
0:02:06.7]} 14. Qxe4 {[%clk 0:01:44.1]} 14... Nf6 {[%clk 0:02:06.7]} 15. Qf3
{[%clk 0:01:28.2]} 15... Qd5 {[%clk 0:02:03]} 16. Bg5 {[%clk 0:00:52.8]} 16...
Qxf3 {[%clk 0:01:58.3]} 17. Nxf3 {[%clk 0:00:53.7]} 17... Nd5 {[%clk 0:01:27.6]}
18. Bxe7 {[%clk 0:00:49.2]} 18... Nxe7 {[%clk 0:01:28.5]} 19. Rac1 {[%clk
0:00:49.4]} 19... Nd5 {[%clk 0:01:27.9]} 20. Rfe1 {[%clk 0:00:49.6]} 20... Rad8
{[%clk 0:01:24.7]} 21. g3 {[%clk 0:00:46]} 21... f6 {[%clk 0:01:23.3]} 22. a3
{[%clk 0:00:42.3]} 22... Kf7 {[%clk 0:01:23.2]} 23. Kg2 {[%clk 0:00:40.2]} 23...
Rfe8 {[%clk 0:01:22.1]} 24. Kf1 {[%clk 0:00:37.6]} 24... g5 {[%clk 0:01:17.1]}
25. h3 {[%clk 0:00:37.6]} 25... h5 {[%clk 0:01:16.7]} 26. Rxe8 {[%clk 0:00:37]}
26... Rxe8 {[%clk 0:01:15]} 27. Nd2 {[%clk 0:00:36.1]} 27... h4 {[%clk
0:01:09.6]} 28. gxh4 {[%clk 0:00:34]} 28... gxh4 {[%clk 0:01:10.5]} 29. Nf3
{[%clk 0:00:32.5]} 29... Re4 {[%clk 0:01:05]} 30. a4 {[%clk 0:00:30]} 30... a5
{[%clk 0:01:02.5]} 31. Rc2 {[%clk 0:00:28.7]} 31... Rf4 {[%clk 0:00:51.2]} 32.
Ke2 {[%clk 0:00:27.3]} 32... Ke6 {[%clk 0:00:49.5]} 33. Rc1 {[%clk 0:00:23.3]}
33... Kd6 {[%clk 0:00:38.6]} 34. Rg1 {[%clk 0:00:20.6]} 34... Re4+ {[%clk
0:00:35.3]} 35. Kd3 {[%clk 0:00:20.4]} 35... Rf4 {[%clk 0:00:35.8]} 36. Ke2
{[%clk 0:00:20.4]} 36... Ne7 {[%clk 0:00:36.2]} 37. Ke3 {[%clk 0:00:18.5]} 37...
Nd5+ {[%clk 0:00:27.8]} 38. Ke2 {[%clk 0:00:18.4]} 1/2-1/2

[Event "*** SCC Grand Prix: Titled Tuesday Blitz"]
[Site "Chess.com"]
[Date "2020.10.13"]
[Round "4"]
[White "norwaytoadog"]
[Black "smshk35"]
[Result "0-1"]
[WhiteElo "2313"]
[BlackElo "2472"]
[TimeControl "180+1"]
[EndTime "10:39:02 PDT"]
[Termination "smshk35 won by checkmate"]

1. e4 {[%clk 0:02:59.7]} 1... e6 {[%clk 0:02:59.7]} 2. d4 {[%clk 0:02:59.4]}
2... c5 {[%clk 0:03:00.3]} 3. Nf3 {[%clk 0:02:58]} 3... cxd4 {[%clk 0:03:00.5]}
4. Nxd4 {[%clk 0:02:58.1]} 4... a6 {[%clk 0:03:01.4]} 5. c4 {[%clk 0:02:58.4]}
5... Nf6 {[%clk 0:03:00]} 6. Nc3 {[%clk 0:02:58.6]} 6... Bb4 {[%clk 0:02:59.3]}
7. Qd3 {[%clk 0:02:52.3]} 7... Nc6 {[%clk 0:02:57.7]} 8. Nxc6 {[%clk 0:02:43.4]}
8... dxc6 {[%clk 0:02:53.4]} 9. Qg3 {[%clk 0:02:33.6]} 9... Nxe4 {[%clk
0:02:32.3]} 10. Qxg7 {[%clk 0:02:27]} 10... Qf6 {[%clk 0:02:27.7]} 11. Qxf6
{[%clk 0:02:26.5]} 11... Nxf6 {[%clk 0:02:28.6]} 12. Bf4 {[%clk 0:02:10]} 12...
Ne4 {[%clk 0:02:26.2]} 13. Rc1 {[%clk 0:02:03.1]} 13... Nxc3 {[%clk 0:02:17.1]}
14. bxc3 {[%clk 0:02:02.6]} 14... Ba3 {[%clk 0:02:16.9]} 15. Rb1 {[%clk
0:01:56.6]} 15... f6 {[%clk 0:02:13.9]} 16. Bd3 {[%clk 0:01:47.8]} 16... e5
{[%clk 0:02:13.9]} 17. Be3 {[%clk 0:01:47.8]} 17... f5 {[%clk 0:02:04.4]} 18. f3
{[%clk 0:01:34.4]} 18... b5 {[%clk 0:02:01.3]} 19. O-O {[%clk 0:01:23.7]} 19...
Be6 {[%clk 0:01:58.4]} 20. c5 {[%clk 0:01:05.7]} 20... O-O-O {[%clk 0:01:52.6]}
21. Bc2 {[%clk 0:00:56.7]} 21... f4 {[%clk 0:01:46]} 22. Bf2 {[%clk 0:00:55.5]}
22... Rd2 {[%clk 0:01:46]} 23. Bb3 {[%clk 0:00:53.7]} 23... Bxb3 {[%clk
0:01:40.5]} 24. axb3 {[%clk 0:00:43.9]} 24... Rg8 {[%clk 0:01:36.9]} 25. g4
{[%clk 0:00:38.9]} 25... fxg3 {[%clk 0:01:33.9]} 26. hxg3 {[%clk 0:00:39]} 26...
Bb2 {[%clk 0:00:54.7]} 27. Be1 {[%clk 0:00:25.5]} 27... Rc2 {[%clk 0:00:42.3]}
28. g4 {[%clk 0:00:12]} 28... Bxc3 {[%clk 0:00:38.6]} 29. Bxc3 {[%clk
0:00:08.4]} 29... Rxc3 {[%clk 0:00:39.5]} 30. b4 {[%clk 0:00:06.7]} 30... h5
{[%clk 0:00:39.1]} 31. Rfe1 {[%clk 0:00:05.5]} 31... hxg4 {[%clk 0:00:38.9]} 32.
fxg4 {[%clk 0:00:04.4]} 32... Rxg4+ {[%clk 0:00:38.9]} 33. Kf2 {[%clk
0:00:04.8]} 33... e4 {[%clk 0:00:38.6]} 34. Rbd1 {[%clk 0:00:03.9]} 34... Rf3+
{[%clk 0:00:37.6]} 35. Ke2 {[%clk 0:00:03.6]} 35... Rg2# {[%clk 0:00:37.8]} 0-1

[Event "*** SCC Grand Prix: Titled Tuesday Blitz"]
[Site "Chess.com"]
[Date "2020.10.13"]
[Round "4"]
[White "Roza_Idrisova"]
[Black "ApacheSVD"]
[Result "0-1"]
[WhiteElo "2165"]
[BlackElo "2396"]
[TimeControl "180+1"]
[EndTime "10:39:02 PDT"]
[Termination "ApacheSVD won on time"]

1. d4 {[%clk 0:03:00.9]} 1... Nf6 {[%clk 0:02:59.7]} 2. Nf3 {[%clk 0:03:01.3]}
2... c5 {[%clk 0:02:58.5]} 3. d5 {[%clk 0:03:00.4]} 3... b5 {[%clk 0:02:59]} 4.
c4 {[%clk 0:02:58.7]} 4... g6 {[%clk 0:02:59.3]} 5. b3 {[%clk 0:02:57.6]} 5...
Bg7 {[%clk 0:02:59.4]} 6. Bb2 {[%clk 0:02:57.8]} 6... O-O {[%clk 0:02:59.9]} 7.
Nbd2 {[%clk 0:02:57.5]} 7... d6 {[%clk 0:03:00.1]} 8. Qc2 {[%clk 0:02:54.7]}
8... b4 {[%clk 0:02:58.7]} 9. a4 {[%clk 0:02:51.9]} 9... a5 {[%clk 0:02:49.3]}
10. e4 {[%clk 0:02:50.2]} 10... e5 {[%clk 0:02:48.4]} 11. dxe6 {[%clk 0:02:46]}
11... Bxe6 {[%clk 0:02:48.5]} 12. Be2 {[%clk 0:02:34.4]} 12... Nc6 {[%clk
0:02:47.3]} 13. O-O {[%clk 0:02:32.5]} 13... Re8 {[%clk 0:02:47.9]} 14. Rfe1
{[%clk 0:02:31.5]} 14... Qc7 {[%clk 0:02:48.1]} 15. Rad1 {[%clk 0:02:30.2]}
15... Rad8 {[%clk 0:02:25.3]} 16. h3 {[%clk 0:02:29.4]} 16... h5 {[%clk
0:02:21.1]} 17. Nf1 {[%clk 0:02:15.8]} 17... Ne5 {[%clk 0:02:19.7]} 18. Ne3
{[%clk 0:02:09.2]} 18... Nfd7 {[%clk 0:02:15.2]} 19. Ng5 {[%clk 0:02:03.9]}
19... Nf8 {[%clk 0:01:51.4]} 20. f4 {[%clk 0:01:59.5]} 20... Nc6 {[%clk
0:01:50.6]} 21. Bxg7 {[%clk 0:01:58.1]} 21... Kxg7 {[%clk 0:01:51.5]} 22. Qb2+
{[%clk 0:01:56.3]} 22... Nd4 {[%clk 0:01:51.7]} 23. Nc2 {[%clk 0:01:52.5]} 23...
f6 {[%clk 0:01:48.6]} 24. Nxd4 {[%clk 0:01:49.3]} 24... cxd4 {[%clk 0:01:46.9]}
25. Qxd4 {[%clk 0:01:41]} 25... Nd7 {[%clk 0:01:33.4]} 26. Nxe6+ {[%clk
0:01:32.2]} 26... Rxe6 {[%clk 0:01:34.3]} 27. f5 {[%clk 0:01:28.9]} 27... Re7
{[%clk 0:01:28.1]} 28. fxg6 {[%clk 0:01:12.1]} 28... Nc5 {[%clk 0:01:23.8]} 29.
Bxh5 {[%clk 0:01:05]} 29... Nxb3 {[%clk 0:01:22.9]} 30. Qd5 {[%clk 0:00:52.9]}
30... Nc5 {[%clk 0:00:56.2]} 31. Rd2 {[%clk 0:00:42.3]} 31... b3 {[%clk
0:00:55.5]} 32. Re3 {[%clk 0:00:26.4]} 32... Qb6 {[%clk 0:00:49.4]} 33. Rb2
{[%clk 0:00:12.8]} 33... Qa7 {[%clk 0:00:46.2]} 34. Kh2 {[%clk 0:00:09.7]} 34...
Rdd7 {[%clk 0:00:40]} 35. Bg4 {[%clk 0:00:01.7]} 35... Re5 {[%clk 0:00:39.9]}
0-1

[Event "*** SCC Grand Prix: Titled Tuesday Blitz"]
[Site "Chess.com"]
[Date "2020.10.13"]
[Round "4"]
[White "IwkooO"]
[Black "Mikedannnn"]
[Result "1-0"]
[WhiteElo "2654"]
[BlackElo "2500"]
[TimeControl "180+1"]
[EndTime "10:39:05 PDT"]
[Termination "IwkooO won by resignation"]

1. e4 {[%clk 0:03:00.9]} 1... c5 {[%clk 0:02:54]} 2. Nf3 {[%clk 0:03:00.6]} 2...
e6 {[%clk 0:02:53.9]} 3. d4 {[%clk 0:03:01.2]} 3... cxd4 {[%clk 0:02:54.2]} 4.
Nxd4 {[%clk 0:03:02.1]} 4... Nc6 {[%clk 0:02:54.7]} 5. Nc3 {[%clk 0:03:01.6]}
5... Qc7 {[%clk 0:02:54.6]} 6. Be2 {[%clk 0:03:01.4]} 6... a6 {[%clk 0:02:54.5]}
7. O-O {[%clk 0:03:01.7]} 7... Nf6 {[%clk 0:02:55]} 8. Be3 {[%clk 0:03:00.8]}
8... Be7 {[%clk 0:02:55.3]} 9. f4 {[%clk 0:02:59.8]} 9... d6 {[%clk 0:02:55.6]}
10. Qe1 {[%clk 0:02:56.3]} 10... O-O {[%clk 0:02:53.7]} 11. Qg3 {[%clk
0:02:55.9]} 11... Nxd4 {[%clk 0:02:53.9]} 12. Bxd4 {[%clk 0:02:56]} 12... d5
{[%clk 0:02:54.4]} 13. exd5 {[%clk 0:02:50.7]} 13... Bc5 {[%clk 0:02:54.3]} 14.
Qe3 {[%clk 0:02:45.8]} 14... Bxd4 {[%clk 0:02:47.4]} 15. Qxd4 {[%clk 0:02:46.1]}
15... exd5 {[%clk 0:02:33.8]} 16. Bf3 {[%clk 0:02:42.7]} 16... Rd8 {[%clk
0:02:10.6]} 17. Nxd5 {[%clk 0:02:23.8]} 17... Nxd5 {[%clk 0:02:10.2]} 18. Bxd5
{[%clk 0:02:24.7]} 18... Be6 {[%clk 0:02:06.9]} 19. c4 {[%clk 0:02:24.5]} 19...
Bxd5 {[%clk 0:01:52.1]} 20. cxd5 {[%clk 0:02:24.3]} 20... Rd6 {[%clk 0:01:52.2]}
21. Rad1 {[%clk 0:02:18.7]} 21... Rad8 {[%clk 0:01:49]} 22. Rfe1 {[%clk
0:02:09.8]} 22... Qd7 {[%clk 0:01:23.5]} 23. Rd2 {[%clk 0:02:06.7]} 23... h5
{[%clk 0:01:14.5]} 24. Red1 {[%clk 0:02:06.8]} 24... h4 {[%clk 0:01:09.6]} 25.
h3 {[%clk 0:02:04.8]} 25... Qf5 {[%clk 0:00:27.2]} 26. Qe5 {[%clk 0:02:04.2]}
26... Qg6 {[%clk 0:00:18.1]} 27. Qe7 {[%clk 0:01:54.1]} 27... Qf5 {[%clk
0:00:16.3]} 28. Qxh4 {[%clk 0:01:47.2]} 28... Rxd5 {[%clk 0:00:16.1]} 29. Qxd8+
{[%clk 0:01:47.9]} 29... Rxd8 {[%clk 0:00:15.8]} 30. Rxd8+ {[%clk 0:01:48.8]}
30... Kh7 {[%clk 0:00:16.7]} 31. R8d4 {[%clk 0:01:49.1]} 31... Qe6 {[%clk
0:00:15]} 32. Kh2 {[%clk 0:01:48.3]} 32... Qxa2 {[%clk 0:00:14.4]} 33. R1d2
{[%clk 0:01:47]} 33... Qe6 {[%clk 0:00:13.8]} 34. R2d3 {[%clk 0:01:20.2]} 34...
b5 {[%clk 0:00:11.4]} 35. Rd5 {[%clk 0:01:14.9]} 35... Qe4 {[%clk 0:00:09.7]}
36. Rh5+ {[%clk 0:01:14.8]} 36... Kg6 {[%clk 0:00:08.8]} 37. Rg5+ {[%clk
0:01:15.1]} 37... Kh6 {[%clk 0:00:09.1]} 38. Rf3 {[%clk 0:01:13.4]} 38... f6
{[%clk 0:00:08.5]} 39. Rg4 {[%clk 0:01:10.8]} 39... Kh7 {[%clk 0:00:04.9]} 40.
f5 {[%clk 0:01:06]} 40... Qe5+ {[%clk 0:00:04.9]} 41. Rfg3 {[%clk 0:01:04.6]}
41... Qxf5 {[%clk 0:00:04.4]} 42. Rxg7+ {[%clk 0:01:04.8]} 42... Kh6 {[%clk
0:00:04.8]} 43. Rg8 {[%clk 0:01:01.3]} 43... Kh7 {[%clk 0:00:01.7]} 44. R8g4
{[%clk 0:01:01.4]} 44... Kh6 {[%clk 0:00:02.1]} 45. Rh4+ {[%clk 0:01:01.4]} 1-0

[Event "*** SCC Grand Prix: Titled Tuesday Blitz"]
[Site "Chess.com"]
[Date "2020.10.13"]
[Round "4"]
[White "Shota_Azaladze"]
[Black "BigAl"]
[Result "0-1"]
[WhiteElo "2632"]
[BlackElo "2515"]
[TimeControl "180+1"]
[EndTime "10:39:05 PDT"]
[Termination "BigAl won by resignation"]

1. Nf3 {[%clk 0:03:00.9]} 1... Nf6 {[%clk 0:02:58.9]} 2. b3 {[%clk 0:02:59.4]}
2... g6 {[%clk 0:02:58.8]} 3. Bb2 {[%clk 0:03:00.3]} 3... Bg7 {[%clk 0:02:59.4]}
4. g3 {[%clk 0:02:58.5]} 4... O-O {[%clk 0:02:59.2]} 5. Bg2 {[%clk 0:02:58.7]}
5... d6 {[%clk 0:02:56.9]} 6. d4 {[%clk 0:02:57.9]} 6... c5 {[%clk 0:02:54.7]}
7. c4 {[%clk 0:02:55.6]} 7... d5 {[%clk 0:02:48.2]} 8. dxc5 {[%clk 0:02:46.2]}
8... dxc4 {[%clk 0:02:41.2]} 9. Nbd2 {[%clk 0:02:31.3]} 9... cxb3 {[%clk
0:02:19.4]} 10. Nxb3 {[%clk 0:02:30.2]} 10... Nc6 {[%clk 0:02:13.2]} 11. Ne5
{[%clk 0:02:25.3]} 11... Qc7 {[%clk 0:01:59]} 12. Nxc6 {[%clk 0:02:22.7]} 12...
bxc6 {[%clk 0:01:59.3]} 13. O-O {[%clk 0:02:22.6]} 13... Rb8 {[%clk 0:01:53.2]}
14. Bc3 {[%clk 0:02:14]} 14... Rd8 {[%clk 0:01:49.6]} 15. Ba5 {[%clk 0:02:00.6]}
15... Rxd1 {[%clk 0:01:44.9]} 16. Bxc7 {[%clk 0:01:58.9]} 16... Rxa1 {[%clk
0:01:37.1]} 17. Rxa1 {[%clk 0:01:57.1]} 17... Rb7 {[%clk 0:01:33.7]} 18. Be5
{[%clk 0:01:55.3]} 18... Nd5 {[%clk 0:01:19.4]} 19. Bxg7 {[%clk 0:01:53.5]}
19... Kxg7 {[%clk 0:01:20.3]} 20. Na5 {[%clk 0:01:42.7]} 20... Rb5 {[%clk
0:01:19.3]} 21. Nxc6 {[%clk 0:01:41.2]} 21... Rxc5 {[%clk 0:01:12.8]} 22. Bxd5
{[%clk 0:01:40.2]} 22... Rxd5 {[%clk 0:01:12.5]} 23. Nxe7 {[%clk 0:01:30.7]}
23... Rc5 {[%clk 0:01:12.7]} 24. Nxc8 {[%clk 0:01:18.2]} 24... Rxc8 {[%clk
0:01:12.8]} 25. Kg2 {[%clk 0:01:14.1]} 25... Rc3 {[%clk 0:01:12.3]} 26. a4
{[%clk 0:01:12.8]} 26... h5 {[%clk 0:01:11.3]} 27. a5 {[%clk 0:01:08.3]} 27...
Kf6 {[%clk 0:01:06]} 28. h3 {[%clk 0:01:02.8]} 28... Rb3 {[%clk 0:01:04]} 29.
Ra4 {[%clk 0:01:01.4]} 29... Rc3 {[%clk 0:00:58.1]} 30. e3 {[%clk 0:00:59.2]}
30... Rb3 {[%clk 0:00:57.5]} 31. Kf3 {[%clk 0:00:59.1]} 31... Rb5 {[%clk
0:00:52]} 32. g4 {[%clk 0:00:57]} 32... h4 {[%clk 0:00:50.4]} 33. a6 {[%clk
0:00:53.4]} 33... g5 {[%clk 0:00:47.4]} 34. Ke4 {[%clk 0:00:48.5]} 34... Rb2
{[%clk 0:00:44.8]} 35. f4 {[%clk 0:00:47.1]} 35... Rh2 {[%clk 0:00:40.3]} 36.
Rc4 {[%clk 0:00:45.9]} 36... Rxh3 {[%clk 0:00:40.2]} 37. Rc6+ {[%clk 0:00:45.1]}
37... Kg7 {[%clk 0:00:39.5]} 38. Rc7 {[%clk 0:00:42.1]} 38... gxf4 {[%clk
0:00:37.8]} 39. exf4 {[%clk 0:00:41]} 39... Rg3 {[%clk 0:00:34.4]} 40. Rxa7
{[%clk 0:00:34]} 40... h3 {[%clk 0:00:34.5]} 41. Rb7 {[%clk 0:00:20.4]} 41... h2
{[%clk 0:00:34.5]} 42. Rb1 {[%clk 0:00:20.4]} 42... Rg1 {[%clk 0:00:34.7]} 0-1

[Event "*** SCC Grand Prix: Titled Tuesday Blitz"]
[Site "Chess.com"]
[Date "2020.10.13"]
[Round "4"]
[White "CrazyMartian"]
[Black "salomez"]
[Result "1-0"]
[WhiteElo "2287"]
[BlackElo "2154"]
[TimeControl "180+1"]
[EndTime "10:39:05 PDT"]
[Termination "CrazyMartian won on time"]

1. d4 {[%clk 0:03:00.9]} 1... Nf6 {[%clk 0:02:58]} 2. c4 {[%clk 0:03:01]} 2...
g6 {[%clk 0:02:58.6]} 3. Nc3 {[%clk 0:03:00.7]} 3... d5 {[%clk 0:02:58.9]} 4.
cxd5 {[%clk 0:03:00.1]} 4... Nxd5 {[%clk 0:02:59.8]} 5. e4 {[%clk 0:02:59.7]}
5... Nxc3 {[%clk 0:03:00.3]} 6. bxc3 {[%clk 0:03:00.6]} 6... Bg7 {[%clk
0:03:00.2]} 7. Be3 {[%clk 0:03:01.1]} 7... c5 {[%clk 0:03:00.5]} 8. Rc1 {[%clk
0:02:57.9]} 8... Qa5 {[%clk 0:02:59.5]} 9. Qd2 {[%clk 0:02:57.5]} 9... O-O
{[%clk 0:02:56]} 10. Nf3 {[%clk 0:02:57.2]} 10... cxd4 {[%clk 0:02:56]} 11. cxd4
{[%clk 0:02:57.5]} 11... Qxd2+ {[%clk 0:02:56]} 12. Nxd2 {[%clk 0:02:38.2]}
12... f5 {[%clk 0:02:33.1]} 13. f3 {[%clk 0:02:36.4]} 13... Nc6 {[%clk
0:02:27.1]} 14. Nb3 {[%clk 0:02:30.5]} 14... a5 {[%clk 0:01:43.3]} 15. d5 {[%clk
0:02:28.2]} 15... Ne5 {[%clk 0:01:37.3]} 16. Be2 {[%clk 0:02:13.4]} 16... fxe4
{[%clk 0:01:24]} 17. fxe4 {[%clk 0:02:13.1]} 17... e6 {[%clk 0:01:02.1]} 18. Rc7
{[%clk 0:01:24.4]} 18... exd5 {[%clk 0:00:51.2]} 19. exd5 {[%clk 0:01:23]} 19...
Rd8 {[%clk 0:00:29.7]} 20. O-O {[%clk 0:01:04.9]} 20... Rxd5 {[%clk 0:00:28.4]}
21. Bd4 {[%clk 0:00:52.8]} 21... Bf5 {[%clk 0:00:21.1]} 22. Bc4 {[%clk
0:00:42.7]} 22... Nxc4 {[%clk 0:00:06]} 23. Rxg7+ {[%clk 0:00:42]} 23... Kf8
{[%clk 0:00:04.6]} 24. Rxh7 {[%clk 0:00:35.3]} 24... Rad8 {[%clk 0:00:03.2]} 25.
g4 {[%clk 0:00:19.9]} 25... Rxd4 {[%clk 0:00:01.6]} 26. Nxd4 {[%clk 0:00:19.6]}
1-0

[Event "*** SCC Grand Prix: Titled Tuesday Blitz"]
[Site "Chess.com"]
[Date "2020.10.13"]
[Round "4"]
[White "rasmussvane"]
[Black "iwanyu"]
[Result "0-1"]
[WhiteElo "2899"]
[BlackElo "2812"]
[TimeControl "180+1"]
[EndTime "10:39:09 PDT"]
[Termination "iwanyu won by checkmate"]

1. Nf3 {[%clk 0:03:00.9]} 1... d5 {[%clk 0:02:59.3]} 2. g3 {[%clk 0:03:01.3]}
2... Bg4 {[%clk 0:02:59.3]} 3. Bg2 {[%clk 0:03:01.5]} 3... Nd7 {[%clk
0:02:59.9]} 4. h3 {[%clk 0:03:01.9]} 4... Bh5 {[%clk 0:02:58.5]} 5. O-O {[%clk
0:03:02.3]} 5... Ngf6 {[%clk 0:02:57.9]} 6. d4 {[%clk 0:03:02.7]} 6... e6 {[%clk
0:02:57.4]} 7. c4 {[%clk 0:03:03.2]} 7... Bxf3 {[%clk 0:02:50.9]} 8. Bxf3 {[%clk
0:03:00.7]} 8... c6 {[%clk 0:02:51.8]} 9. Nd2 {[%clk 0:02:55.8]} 9... g6 {[%clk
0:02:51.9]} 10. b3 {[%clk 0:02:40.1]} 10... Bg7 {[%clk 0:02:51.8]} 11. Ba3
{[%clk 0:02:40.1]} 11... Bf8 {[%clk 0:02:52.3]} 12. Bxf8 {[%clk 0:02:35.3]}
12... Kxf8 {[%clk 0:02:53.2]} 13. Qc2 {[%clk 0:02:34.8]} 13... Kg7 {[%clk
0:02:53]} 14. e3 {[%clk 0:02:34.7]} 14... a5 {[%clk 0:02:49.7]} 15. a3 {[%clk
0:02:34.6]} 15... Ne8 {[%clk 0:02:46.3]} 16. Rfc1 {[%clk 0:02:29.9]} 16... Ndf6
{[%clk 0:02:44.2]} 17. Rab1 {[%clk 0:02:29.7]} 17... Nd6 {[%clk 0:02:42.7]} 18.
b4 {[%clk 0:02:30]} 18... axb4 {[%clk 0:02:42.3]} 19. axb4 {[%clk 0:02:30.9]}
19... h5 {[%clk 0:02:33.8]} 20. h4 {[%clk 0:02:28]} 20... g5 {[%clk 0:02:30.8]}
21. hxg5 {[%clk 0:02:21.9]} 21... Ng4 {[%clk 0:02:29.9]} 22. Be2 {[%clk
0:01:51.5]} 22... Qxg5 {[%clk 0:02:26]} 23. Nf3 {[%clk 0:01:36.6]} 23... Qf6
{[%clk 0:02:25.2]} 24. c5 {[%clk 0:01:23.9]} 24... Ne4 {[%clk 0:02:23.2]} 25.
Kg2 {[%clk 0:01:05.3]} 25... Nexf2 {[%clk 0:02:17.3]} 26. Rb3 {[%clk 0:00:48.4]}
26... Ne4 {[%clk 0:01:55.9]} 27. Rf1 {[%clk 0:00:48]} 27... Qh6 {[%clk
0:01:53.9]} 28. Ne5 {[%clk 0:00:37.4]} 28... Nxe3+ {[%clk 0:01:48.7]} 29. Rxe3
{[%clk 0:00:36.4]} 29... Qxe3 {[%clk 0:01:49.6]} 30. Rxf7+ {[%clk 0:00:34.3]}
30... Kg8 {[%clk 0:01:48.8]} 31. Bf3 {[%clk 0:00:23.9]} 31... h4 {[%clk
0:01:32.1]} 32. Rf4 {[%clk 0:00:13.7]} 32... Ra1 {[%clk 0:00:29.5]} 33. Rg4+
{[%clk 0:00:09.6]} 33... Kf8 {[%clk 0:00:29.9]} 34. Rf4+ {[%clk 0:00:01.6]}
34... Ke8 {[%clk 0:00:29.2]} 35. Rxh4 {[%clk 0:00:02.1]} 35... Qg1+ {[%clk
0:00:27.8]} 36. Kh3 {[%clk 0:00:02.5]} 36... Qxg3# {[%clk 0:00:28.7]} 0-1

[Event "*** SCC Grand Prix: Titled Tuesday Blitz"]
[Site "Chess.com"]
[Date "2020.10.13"]
[Round "4"]
[White "temus_galaktionov"]
[Black "Gabix_94"]
[Result "1-0"]
[WhiteElo "2645"]
[BlackElo "2779"]
[TimeControl "180+1"]
[EndTime "10:39:12 PDT"]
[Termination "temus_galaktionov won by resignation"]

1. d4 {[%clk 0:03:00.9]} 1... Nf6 {[%clk 0:02:56.5]} 2. Nf3 {[%clk 0:03:01.5]}
2... c5 {[%clk 0:02:55.8]} 3. d5 {[%clk 0:03:01.3]} 3... g6 {[%clk 0:02:55.7]}
4. c4 {[%clk 0:03:01.8]} 4... Bg7 {[%clk 0:02:56]} 5. Nc3 {[%clk 0:03:02.3]}
5... d6 {[%clk 0:02:56.3]} 6. h3 {[%clk 0:03:01.7]} 6... O-O {[%clk 0:02:56.8]}
7. e4 {[%clk 0:03:02.1]} 7... e6 {[%clk 0:02:55.3]} 8. Bd3 {[%clk 0:03:01.4]}
8... Na6 {[%clk 0:02:53.5]} 9. O-O {[%clk 0:03:00.6]} 9... e5 {[%clk 0:02:53.6]}
10. a3 {[%clk 0:02:57.9]} 10... Ne8 {[%clk 0:02:51.7]} 11. g4 {[%clk 0:02:47.6]}
11... Nac7 {[%clk 0:02:45.6]} 12. Be3 {[%clk 0:02:44.3]} 12... b6 {[%clk
0:02:44.4]} 13. Kh2 {[%clk 0:02:41.1]} 13... Kh8 {[%clk 0:02:40.8]} 14. Rg1
{[%clk 0:02:40.7]} 14... f6 {[%clk 0:02:40.6]} 15. b4 {[%clk 0:02:38]} 15... Qe7
{[%clk 0:02:39.2]} 16. Rg3 {[%clk 0:02:31.7]} 16... f5 {[%clk 0:02:32.9]} 17.
gxf5 {[%clk 0:02:25.4]} 17... gxf5 {[%clk 0:02:32]} 18. exf5 {[%clk 0:02:23.8]}
18... e4 {[%clk 0:02:11.8]} 19. Nxe4 {[%clk 0:02:19.9]} 19... Bxf5 {[%clk
0:02:12.3]} 20. Bg5 {[%clk 0:02:17.4]} 20... Qd7 {[%clk 0:02:06.3]} 21. Rb1
{[%clk 0:02:08.4]} 21... cxb4 {[%clk 0:02:02.7]} 22. axb4 {[%clk 0:02:07.3]}
22... b5 {[%clk 0:01:57]} 23. Qe2 {[%clk 0:01:05]} 23... bxc4 {[%clk 0:01:49]}
24. Bxc4 {[%clk 0:01:05.9]} 24... Bg6 {[%clk 0:01:49.1]} 25. Nh4 {[%clk
0:01:03]} 25... Bxe4 {[%clk 0:01:47]} 26. Qxe4 {[%clk 0:01:03.9]} 26... Rxf2+
{[%clk 0:01:47.4]} 27. Kh1 {[%clk 0:01:00.3]} 27... Nf6 {[%clk 0:01:42.3]} 28.
Qe3 {[%clk 0:00:52.4]} 28... Rc2 {[%clk 0:00:45.1]} 29. Bd3 {[%clk 0:00:51.6]}
29... Ncxd5 {[%clk 0:00:42.6]} 30. Qf3 {[%clk 0:00:48.8]} 30... Rcc8 {[%clk
0:00:33.9]} 31. Rbg1 {[%clk 0:00:46.2]} 31... Rf8 {[%clk 0:00:31.3]} 32. Nf5
{[%clk 0:00:45.8]} 32... Rae8 {[%clk 0:00:24]} 33. Bc1 {[%clk 0:00:41.9]} 33...
Rf7 {[%clk 0:00:17.3]} 34. Rxg7 {[%clk 0:00:38.7]} 34... Rxg7 {[%clk 0:00:17.7]}
35. Rxg7 {[%clk 0:00:35.3]} 35... Re1+ {[%clk 0:00:18.2]} 36. Kh2 {[%clk
0:00:33.7]} 36... Qe6 {[%clk 0:00:17.9]} 37. Bb2 {[%clk 0:00:27.6]} 37... Rd1
{[%clk 0:00:10.9]} 38. Qxd1 {[%clk 0:00:25.4]} 1-0